Department Of Health,Entity,Date of Payment,Expense Type,Expense Area,Supplier ,Amount,Month
Department Of Health,United Lincolnshire Hospitals NHS Trust,15/07/2021,PHARMACY PILGRIM,DIAGNOSTICS,AAH HOSPITAL SERVICE,"35,899.66",Jul-21
Department Of Health,United Lincolnshire Hospitals NHS Trust,29/07/2021,PHARMACY PILGRIM,DIAGNOSTICS,AAH HOSPITAL SERVICE,"46,246.56",Jul-21
Department Of Health,United Lincolnshire Hospitals NHS Trust,29/07/2021,PHARMACY PILGRIM,DIAGNOSTICS,AAH HOSPITAL SERVICE,"52,468.73",Jul-21
Department Of Health,United Lincolnshire Hospitals NHS Trust,29/07/2021,PHARMACY PILGRIM,DIAGNOSTICS,AAH HOSPITAL SERVICE,"49,707.22",Jul-21
Department Of Health,United Lincolnshire Hospitals NHS Trust,08/07/2021,PHARMACY,DIAGNOSTICS,ALLOGA UK LTD,"54,240.00",Jul-21
Department Of Health,United Lincolnshire Hospitals NHS Trust,29/07/2021,PHARMACY,DIAGNOSTICS,ALLOGA UK LTD,"27,120.00",Jul-21
Department Of Health,United Lincolnshire Hospitals NHS Trust,08/07/2021,WATER AND SEWERAGE,DIRECTOR OF ESTATES & FACIL,ANGLIAN WATER BUSINESS NATIONAL LTD,"37,983.97",Jul-21
Department Of Health,United Lincolnshire Hospitals NHS Trust,29/07/2021,WATER AND SEWERAGE,DIRECTOR OF ESTATES & FACIL,ANGLIAN WATER BUSINESS NATIONAL LTD,"39,750.94",Jul-21
Department Of Health,United Lincolnshire Hospitals NHS Trust,29/07/2021,WATER AND SEWERAGE,DIRECTOR OF ESTATES & FACIL,ANGLIAN WATER BUSINESS NATIONAL LTD,"28,444.97",Jul-21
Department Of Health,United Lincolnshire Hospitals NHS Trust,29/07/2021,PHARMACY,DIAGNOSTICS,BATH ASU,"33,369.12",Jul-21
Department Of Health,United Lincolnshire Hospitals NHS Trust,15/07/2021,EXTERNAL LAUNDRY CONTRACT,DIRECTOR OF ESTATES & FACIL,BERENDSEN HEALTHCARE LTD,"40,023.33",Jul-21
Department Of Health,United Lincolnshire Hospitals NHS Trust,29/07/2021,EXTERNAL LAUNDRY CONTRACT,DIRECTOR OF ESTATES & FACIL,BERENDSEN HEALTHCARE LTD,"53,713.25",Jul-21
Department Of Health,United Lincolnshire Hospitals NHS Trust,29/07/2021,COMP SOFTWARE LICENCE FEES,DIRECTOR OF FINANCE & DIGITAL,BRAMBLE HUB LTD,"38,799.60",Jul-21
Department Of Health,United Lincolnshire Hospitals NHS Trust,29/07/2021,MEDICAL NEGLIGENCE,CHIEF EXECUTIVE,BROWNE JACOBSON (INVOICES ONLY),"30,229.27",Jul-21
Department Of Health,United Lincolnshire Hospitals NHS Trust,29/07/2021,ENGINEERING SERVICES,CAPITAL PROGRAMME,CANON MEDICAL SYSTEMS LTD,"30,202.00",Jul-21
Department Of Health,United Lincolnshire Hospitals NHS Trust,15/07/2021,MSSE CONSUMABLES,DIAGNOSTICS TRUSTWIDE,CANON MEDICAL SYSTEMS LTD,"38,571.30",Jul-21
Department Of Health,United Lincolnshire Hospitals NHS Trust,29/07/2021,AGENCY HCA  OTHER SUPP STAFF,DIRECTOR OF ESTATES & FACIL,CRYSTAL FACILITIES MANAGEMENT LTD,"73,128.00",Jul-21
Department Of Health,United Lincolnshire Hospitals NHS Trust,29/07/2021,QUALIFIED AGENCY INVOICES,DIRECTOR OF NURSING,DRC LOCUMS LIMITED,"21,526.38",Jul-21
Department Of Health,United Lincolnshire Hospitals NHS Trust,29/07/2021,QUALIFIED AGENCY INVOICES,DIRECTOR OF NURSING,DRC LOCUMS LIMITED,"22,123.75",Jul-21
Department Of Health,United Lincolnshire Hospitals NHS Trust,29/07/2021,MSSE CONSUMABLES,THERAPIES & REHAB TRUSTWIDE,FRESENIUS KABI LTD,"26,862.46",Jul-21
Department Of Health,United Lincolnshire Hospitals NHS Trust,08/07/2021,Building Works,CAPITAL PROGRAMME,GELDER LTD,"54,337.47",Jul-21
Department Of Health,United Lincolnshire Hospitals NHS Trust,08/07/2021,Building Works,CAPITAL PROGRAMME,GELDER LTD,"82,701.51",Jul-21
Department Of Health,United Lincolnshire Hospitals NHS Trust,15/07/2021,QUALIFIED AGENCY INVOICES,DIRECTOR OF NURSING,GROUP 24 LTD T/A NURSING 24,"78,388.75",Jul-21
Department Of Health,United Lincolnshire Hospitals NHS Trust,15/07/2021,QUALIFIED AGENCY INVOICES,DIRECTOR OF NURSING,GROUP 24 LTD T/A NURSING 24,"79,737.75",Jul-21
Department Of Health,United Lincolnshire Hospitals NHS Trust,15/07/2021,QUALIFIED AGENCY INVOICES,DIRECTOR OF NURSING,GROUP 24 LTD T/A NURSING 24,"101,354.75",Jul-21
Department Of Health,United Lincolnshire Hospitals NHS Trust,29/07/2021,QUALIFIED AGENCY INVOICES,DIRECTOR OF NURSING,GROUP 24 LTD T/A NURSING 24,"83,841.75",Jul-21
Department Of Health,United Lincolnshire Hospitals NHS Trust,29/07/2021,QUALIFIED AGENCY INVOICES,DIRECTOR OF NURSING,GROUP 24 LTD T/A NURSING 24,"102,252.00",Jul-21
Department Of Health,United Lincolnshire Hospitals NHS Trust,29/07/2021,RECRUITMENT  EXPENSES,DIRECTOR OF PEOPLE & OD,HEALTH EDUCATION ENGLAND,"85,352.66",Jul-21
Department Of Health,United Lincolnshire Hospitals NHS Trust,08/07/2021,PHARMACY,DIAGNOSTICS,HEALTHCARE AT HOME,"25,887.00",Jul-21
Department Of Health,United Lincolnshire Hospitals NHS Trust,29/07/2021,PHARMACY,DIAGNOSTICS,HEALTHCARE AT HOME,"25,887.00",Jul-21
Department Of Health,United Lincolnshire Hospitals NHS Trust,15/07/2021,PAYE,PAN TRUST,HM REVENUE & CUSTOMS,"124,238.00",Jul-21
Department Of Health,United Lincolnshire Hospitals NHS Trust,15/07/2021,PAYE,PAN TRUST,HM REVENUE & CUSTOMS,"4,140,526.89",Jul-21
Department Of Health,United Lincolnshire Hospitals NHS Trust,15/07/2021,PAYE,PAN TRUST,HM REVENUE & CUSTOMS,"3,897,698.76",Jul-21
Department Of Health,United Lincolnshire Hospitals NHS Trust,15/07/2021,MAINTENANCE CONTRACTS AND MATS,DIAGNOSTICS TRUSTWIDE,HOLOGIC LTD,"27,720.00",Jul-21
Department Of Health,United Lincolnshire Hospitals NHS Trust,15/07/2021,QUALIFIED AGENCY INVOICES,DIRECTOR OF NURSING,ID MEDICAL GROUP LTD,"41,821.00",Jul-21
Department Of Health,United Lincolnshire Hospitals NHS Trust,29/07/2021,QUALIFIED AGENCY INVOICES,DIRECTOR OF NURSING,ID MEDICAL GROUP LTD,"30,330.13",Jul-21
Department Of Health,United Lincolnshire Hospitals NHS Trust,29/07/2021,QUALIFIED AGENCY INVOICES,DIRECTOR OF NURSING,ID MEDICAL GROUP LTD,"41,176.75",Jul-21
Department Of Health,United Lincolnshire Hospitals NHS Trust,29/07/2021,QUALIFIED AGENCY INVOICES,DIRECTOR OF NURSING,ID MEDICAL GROUP LTD,"38,533.75",Jul-21
Department Of Health,United Lincolnshire Hospitals NHS Trust,29/07/2021,QUALIFIED AGENCY INVOICES,DIRECTOR OF NURSING,ID MEDICAL GROUP LTD,"38,047.50",Jul-21
Department Of Health,United Lincolnshire Hospitals NHS Trust,15/07/2021,FUEL - STEAM,DIRECTOR OF ESTATES & FACIL,INDUSTRIAL ENERGY SERVICES LTD,"28,033.59",Jul-21
Department Of Health,United Lincolnshire Hospitals NHS Trust,29/07/2021,FUEL - STEAM,DIRECTOR OF ESTATES & FACIL,INDUSTRIAL ENERGY SERVICES LTD,"50,252.88",Jul-21
Department Of Health,United Lincolnshire Hospitals NHS Trust,29/07/2021,BUILD MAINT EXT CONTRACTS,DIRECTOR OF FINANCE & DIGITAL,IP INTEGRATION LTD,"331,869.53",Jul-21
Department Of Health,United Lincolnshire Hospitals NHS Trust,15/07/2021,Building Works,CAPITAL PROGRAMME,J TOMLINSON LTD,"143,388.07",Jul-21
Department Of Health,United Lincolnshire Hospitals NHS Trust,08/07/2021,PHARMACY,DIAGNOSTICS,JANSSEN-CILAG LTD,"26,956.80",Jul-21
Department Of Health,United Lincolnshire Hospitals NHS Trust,08/07/2021,CLINICAL SERVICE CONTRACT,THERAPIES & REHAB TRUSTWIDE,LINCOLNSHIRE COMMUNITY HEALTH SERVICES,"47,187.83",Jul-21
Department Of Health,United Lincolnshire Hospitals NHS Trust,29/07/2021,CLINICAL SERVICE CONTRACT,THERAPIES & REHAB TRUSTWIDE,LINCOLNSHIRE COMMUNITY HEALTH SERVICES,"47,187.83",Jul-21
Department Of Health,United Lincolnshire Hospitals NHS Trust,29/07/2021,OTHER NURSING,DIRECTOR OF FINANCE & DIGITAL,LINCOLNSHIRE COMMUNITY HEALTH SERVICES,"114,266.22",Jul-21
Department Of Health,United Lincolnshire Hospitals NHS Trust,08/07/2021,EXTERNAL PAYROLL CONTRACT,DIRECTOR OF FINANCE & DIGITAL,LINCOLNSHIRE PARTNERSHIP NHS TRUST,"35,446.10",Jul-21
Department Of Health,United Lincolnshire Hospitals NHS Trust,29/07/2021,CLINICAL SERVICE CONTRACT,DIAGNOSTICS TRUSTWIDE,MEDICA GROUP,"50,855.00",Jul-21
Department Of Health,United Lincolnshire Hospitals NHS Trust,15/07/2021,MSSE CONSUMABLES,DIAGNOSTICS TRUSTWIDE,MEDICA GROUP,"39,936.00",Jul-21
Department Of Health,United Lincolnshire Hospitals NHS Trust,29/07/2021,QUALIFIED AGENCY INVOICES,DIRECTOR OF NURSING,MEDICAL 24 LTD,"21,156.43",Jul-21
Department Of Health,United Lincolnshire Hospitals NHS Trust,15/07/2021,EXCLUDED DEVICES,CARDIOVASCULAR,MEDTRONIC LTD,"32,346.00",Jul-21
Department Of Health,United Lincolnshire Hospitals NHS Trust,15/07/2021,MSSE CONSUMABLES,CARDIOVASCULAR,MEDTRONIC LTD,"3,594.00",Jul-21
Department Of Health,United Lincolnshire Hospitals NHS Trust,29/07/2021,EXTERNAL CONTRACTS,DIRECTOR OF ESTATES & FACIL,MPD FM LIMITED,"22,277.31",Jul-21
Department Of Health,United Lincolnshire Hospitals NHS Trust,29/07/2021,QUALIFIED AGENCY INVOICES,DIRECTOR OF NURSING,MSL HEALTHCARE LIMITED,"21,620.25",Jul-21
Department Of Health,United Lincolnshire Hospitals NHS Trust,15/07/2021,MEDICAL LOCUMS,DIAGNOSTICS TRUSTWIDE,NEUROPHYSIOLOGY EXPERTS LTD,"26,205.00",Jul-21
Department Of Health,United Lincolnshire Hospitals NHS Trust,29/07/2021,MEDICAL LOCUMS,DIAGNOSTICS TRUSTWIDE,NEUROPHYSIOLOGY EXPERTS LTD,"26,670.00",Jul-21
Department Of Health,United Lincolnshire Hospitals NHS Trust,29/07/2021,POST MAR 95 RETIREMENTS < 1 Yr,DIRECTORATE OF FINANCE & CORPORATE AFFAIRS,NHS PENSION SCHEME,"18,441.73",Jul-21
Department Of Health,United Lincolnshire Hospitals NHS Trust,29/07/2021,PRE MAR 95 RETIREMENTS < 1 Yr,DIRECTORATE OF FINANCE & CORPORATE AFFAIRS,NHS PENSION SCHEME,"6,940.60",Jul-21
Department Of Health,United Lincolnshire Hospitals NHS Trust,15/07/2021,RENTS LEASE,DIRECTOR OF ESTATES & FACIL,NHS PROPERTY SERVICES LTD,"43,358.42",Jul-21
Department Of Health,United Lincolnshire Hospitals NHS Trust,15/07/2021,RENTS LEASE,DIRECTOR OF ESTATES & FACIL,NHS PROPERTY SERVICES LTD,"55,205.29",Jul-21
Department Of Health,United Lincolnshire Hospitals NHS Trust,15/07/2021,SERVICE AND FM CHARGES,DIRECTOR OF ESTATES & FACIL,NHS PROPERTY SERVICES LTD,"4,503.86",Jul-21
Department Of Health,United Lincolnshire Hospitals NHS Trust,15/07/2021,SERVICE AND FM CHARGES,DIRECTOR OF ESTATES & FACIL,NHS PROPERTY SERVICES LTD,"7,284.76",Jul-21
Department Of Health,United Lincolnshire Hospitals NHS Trust,15/07/2021,SERVICE AND FM CHARGES,DIRECTOR OF ESTATES & FACIL,NHS PROPERTY SERVICES LTD,"45,422.25",Jul-21
Department Of Health,United Lincolnshire Hospitals NHS Trust,15/07/2021,SERVICE AND FM CHARGES,DIRECTOR OF ESTATES & FACIL,NHS PROPERTY SERVICES LTD,"34,634.62",Jul-21
Department Of Health,United Lincolnshire Hospitals NHS Trust,15/07/2021,SERVICE AND FM CHARGES,DIRECTOR OF ESTATES & FACIL,NHS PROPERTY SERVICES LTD,"25,095.94",Jul-21
Department Of Health,United Lincolnshire Hospitals NHS Trust,15/07/2021,SERVICE AND FM CHARGES,DIRECTOR OF ESTATES & FACIL,NHS PROPERTY SERVICES LTD,"99,864.28",Jul-21
Department Of Health,United Lincolnshire Hospitals NHS Trust,15/07/2021,SERVICE AND FM CHARGES,DIRECTOR OF ESTATES & FACIL,NHS PROPERTY SERVICES LTD,"26,545.18",Jul-21
Department Of Health,United Lincolnshire Hospitals NHS Trust,29/07/2021,CLINICAL SERVICES OTHER NHS,WOMENS HEALTH AND BREAST SERVS,NORTH WEST ANGLIA NHS FOUNDATION TRUST,"28,474.87",Jul-21
Department Of Health,United Lincolnshire Hospitals NHS Trust,08/07/2021,PATHOLOGY SERVICES,BLOOD & PATHLINKS TRUSTWIDE,NORTHERN LINCOLNSHIRE & GOOLE HOSPITALS,"863,644.00",Jul-21
Department Of Health,United Lincolnshire Hospitals NHS Trust,08/07/2021,DIAGNOSTIC TESTS OTHER NHS,CANCER SERVICES,NOTTINGHAM UNIVERSITY HOSPITALS NHS TRUS,"29,055.13",Jul-21
Department Of Health,United Lincolnshire Hospitals NHS Trust,08/07/2021,DIAGNOSTIC TESTS OTHER NHS,TACC & PAIN,NOTTINGHAM UNIVERSITY HOSPITALS NHS TRUS,175.00,Jul-21
Department Of Health,United Lincolnshire Hospitals NHS Trust,08/07/2021,QUALIFIED AGENCY INVOICES,DIRECTOR OF NURSING,NUTRIX PERSONNEL LTD,"53,727.75",Jul-21
Department Of Health,United Lincolnshire Hospitals NHS Trust,08/07/2021,QUALIFIED AGENCY INVOICES,DIRECTOR OF NURSING,NUTRIX PERSONNEL LTD,"48,993.50",Jul-21
Department Of Health,United Lincolnshire Hospitals NHS Trust,15/07/2021,QUALIFIED AGENCY INVOICES,DIRECTOR OF NURSING,NUTRIX PERSONNEL LTD,"43,732.50",Jul-21
Department Of Health,United Lincolnshire Hospitals NHS Trust,29/07/2021,QUALIFIED AGENCY INVOICES,DIRECTOR OF NURSING,NUTRIX PERSONNEL LTD,"44,101.50",Jul-21
Department Of Health,United Lincolnshire Hospitals NHS Trust,29/07/2021,QUALIFIED AGENCY INVOICES,DIRECTOR OF NURSING,NUTRIX PERSONNEL LTD,"48,407.88",Jul-21
Department Of Health,United Lincolnshire Hospitals NHS Trust,06/07/2021,POSTAGE,DIRECTOR OF ESTATES & FACIL,QUADIENT UK LIMITED,"30,000.00",Jul-21
Department Of Health,United Lincolnshire Hospitals NHS Trust,15/07/2021,MEDICAL RECORD STORAGE,DIRECTOR OF FINANCE & DIGITAL,RESTORE PLC - (WAS MAGNUM),"42,948.74",Jul-21
Department Of Health,United Lincolnshire Hospitals NHS Trust,08/07/2021,PHARMACY,DIAGNOSTICS,ROCHE PRODUCTS LTD,"32,243.14",Jul-21
Department Of Health,United Lincolnshire Hospitals NHS Trust,29/07/2021,PHARMACY,DIAGNOSTICS,ROCHE PRODUCTS LTD,"73,534.80",Jul-21
Department Of Health,United Lincolnshire Hospitals NHS Trust,08/07/2021,COMPUTER HARDWARE,CAPITAL PROGRAMME,SAFECONTROL LTD,"38,952.00",Jul-21
Department Of Health,United Lincolnshire Hospitals NHS Trust,15/07/2021,EQUIPMENT,CAPITAL PROGRAMME,SCCL - NHS SUPPLY CHAIN (CAPITAL),"55,087.31",Jul-21
Department Of Health,United Lincolnshire Hospitals NHS Trust,15/07/2021,MAINTENANCE CONTRACTS AND MATS,DIAGNOSTICS TRUSTWIDE,SCCL - NHS SUPPLY CHAIN (CAPITAL),"9,191.81",Jul-21
Department Of Health,United Lincolnshire Hospitals NHS Trust,08/07/2021,RESUS STOCK CONSUMABLES,PAN TRUST,SCCL - NHS SUPPLY CHAIN (PRODUCT SALES),"466,050.92",Jul-21
Department Of Health,United Lincolnshire Hospitals NHS Trust,29/07/2021,RESUS STOCK CONSUMABLES,PAN TRUST,SCCL - NHS SUPPLY CHAIN (PRODUCT SALES),"528,210.57",Jul-21
Department Of Health,United Lincolnshire Hospitals NHS Trust,29/07/2021,RESUS STOCK CONSUMABLES,PAN TRUST,SCCL - NHS SUPPLY CHAIN (PRODUCT SALES),"523,782.90",Jul-21
Department Of Health,United Lincolnshire Hospitals NHS Trust,29/07/2021,GP SPECIALIST TRAINEE,MEDICAL DIRECTOR,ST HELENS & KNOWSLEY TEACHING,"33,392.62",Jul-21
Department Of Health,United Lincolnshire Hospitals NHS Trust,29/07/2021,GP SPECIALIST TRAINEE,MEDICAL DIRECTOR,ST HELENS & KNOWSLEY TEACHING,"250,000.00",Jul-21
Department Of Health,United Lincolnshire Hospitals NHS Trust,29/07/2021,CLINICAL SERVICES FROM NON-NHS,TACC & PAIN,SYNERGY HEALTH (UK) LTD,"285,565.92",Jul-21
Department Of Health,United Lincolnshire Hospitals NHS Trust,15/07/2021,CPAP MACHINES,SURGERY AND HEAD & NECK,THE SNORING DISORDERS CENTRE LTD,"65,714.08",Jul-21
Department Of Health,United Lincolnshire Hospitals NHS Trust,15/07/2021,CPAP MACHINES,SURGERY AND HEAD & NECK,THE SNORING DISORDERS CENTRE LTD,"49,037.12",Jul-21
Department Of Health,United Lincolnshire Hospitals NHS Trust,29/07/2021,CPAP MACHINES,SURGERY AND HEAD & NECK,THE SNORING DISORDERS CENTRE LTD,"37,830.40",Jul-21
Department Of Health,United Lincolnshire Hospitals NHS Trust,29/07/2021,CPAP MACHINES,SURGERY AND HEAD & NECK,THE SNORING DISORDERS CENTRE LTD,"46,424.96",Jul-21
